fUST/lending_fUST_20250221
["ID","MTS","AMOUNT","RATE_DAILY","PERIOD"]
[353821781,1740078641000,-171.24060366,0.00013927,2]
[353821782,1740078641009,-171.24060366,0.00013927,2]
[353821783,1740078641019,-171.24060366,0.00013927,2]
[353821784,1740078641028,-171.24060366,0.00013927,2]
[353821785,1740078641038,-171.24060366,0.00013927,2]
[353821786,1740078641047,-171.24060366,0.00013927,2]
[353821787,1740078641057,-171.24060366,0.00013927,2]
[353821788,1740078641068,-171.24060366,0.00013927,2]
[353821789,1740078641077,-171.24060366,0.00013927,2]
[353821790,1740078641086,-171.24060366,0.00013927,2]
[353821791,1740078641095,-171.24,0.00013927,2]
[353821792,1740078641107,-500.0,0.00013945,2]
[353821793,1740078641117,-500.0,0.00013945,2]
[353821794,1740078641126,-600.60684181,0.00013945,2]
[353821795,1740078641136,-331.08,0.00013945,2]
[353821796,1740078641145,-297.48849811,0.00013945,2]
[353821797,1740078641155,-500.0,0.00013945,2]
[353821798,1740078641164,-500.0,0.00013945,2]
[353821799,1740078641173,-500.0,0.00013945,2]
[353821800,1740078641183,-1155.71,0.00013945,2]
[353821801,1740078641192,-500.0,0.00013945,2]
[353821802,1740078641201,-531.14,0.00013945,2]
[353821803,1740078641211,-692.19,0.00013945,2]
[353821804,1740078641222,-500.0,0.00013945,2]
[353821805,1740078641231,-573.15,0.00013945,2]
[353821806,1740078641241,-500.0,0.00013945,2]
[353821807,1740078641250,-500.0,0.00013945,2]
[353821808,1740078641260,-500.0,0.00013945,2]
[353821809,1740078641269,-896.16,0.00013945,2]
[353821810,1740078641279,-500.0,0.00013945,2]
[353821811,1740078641289,-554.83,0.00013945,2]
[353821812,1740078641298,-542.08,0.00013945,2]
[353821813,1740078641307,-500.0,0.00013945,2]
[353821814,1740078641319,-500.0,0.00013945,2]
[353821815,1740078641328,-535.76,0.00013945,2]
[353821816,1740078641337,-594.4,0.00013945,2]
[353821817,1740078641347,-500.0,0.00013945,2]
[353821818,1740078641357,-1055.0,0.00013945,2]
[353821819,1740078641366,-500.0,0.00013945,2]
[353821820,1740078641375,-811.86,0.00013945,2]
[353821821,1740078641384,-500.0,0.00013945,2]
[353821822,1740078641394,-500.0,0.00013945,2]
[353821823,1740078641404,-500.0,0.00013945,2]
[353821824,1740078641413,-704.69,0.00013945,2]
[353821825,1740078641423,-500.0,0.00013945,2]
[353821826,1740078641432,-500.0,0.00013945,2]
[353821827,1740078641443,-500.0,0.00013945,2]
[353821828,1740078641454,-452.48461225,0.00013945,2]
[353821829,1740078641590,-500.0,0.00013945,2]
[353821830,1740078641599,-609.0,0.00013945,2]
[353821831,1740078641609,-500.0,0.00013945,2]
[353821832,1740078641618,-585.93,0.00013945,2]
[353821833,1740078641627,-500.0,0.00013945,2]
[353821834,1740078641636,-500.0,0.00013945,2]
[353821835,1740078641645,-500.0,0.00013945,2]
[353821836,1740078641656,-500.0,0.00013945,2]
[353821837,1740078641665,-528.15,0.00013945,2]
[353821838,1740078641675,-500.0,0.00013945,2]
[353821839,1740078641684,-500.0,0.00013945,2]
[353821840,1740078641695,-457.55599559,0.00013945,2]
[353821841,1740078641704,-500.0,0.00013945,2]
[353821842,1740078641715,-500.0,0.00013945,2]
[353821843,1740078641724,-15414.88,0.00013945,2]
[353821844,1740078641733,-500.0,0.00013945,2]
[353821845,1740078641742,-732.37,0.00013945,2]
[353821846,1740078641752,-1736.85,0.00013945,2]
[353821847,1740078641761,-909.06,0.00013945,2]
[353821848,1740078641771,-666.3,0.00013945,2]
[353821849,1740078641780,-1333.08,0.00013945,2]
[353821850,1740078641789,-527.72618606,0.00013945,2]
[353821851,1740078641798,-1099.26,0.00013945,2]
[353821852,1740078641808,-513.05,0.00013945,2]
[353821853,1740078641818,-38588.06,0.00013945,2]
[353821854,1740078641827,-500.0,0.00013945,2]
[353821855,1740078641837,-500.0,0.00013945,2]
[353821856,1740078641847,-500.0,0.00013945,2]
[353821857,1740078641856,-870.86,0.00013945,2]
[353821858,1740078641866,-2235.7,0.00013945,2]
[353821859,1740078641875,-445.62761201,0.00013945,2]
[353821860,1740078641885,-1087.36,0.00013945,2]
[353821861,1740078641894,-1121.24,0.00013945,2]
[353821862,1740078641905,-418.57688245,0.00013945,2]
[353821863,1740078641914,-500.0,0.00013945,2]
[353821864,1740078641923,-1307.05,0.00013945,2]
[353821865,1740078641933,-2835.69,0.00013945,2]
[353821866,1740078641943,-6311.81,0.00013945,2]
[353821867,1740078641952,-500.0,0.00013945,2]
[353821868,1740078641962,-513.85,0.00013945,2]
[353821869,1740078641971,-500.0,0.00013945,2]
[353821870,1740078641981,-609.45,0.00013945,2]
[353821871,1740078641991,-640.81,0.00013945,2]
[353821872,1740078642000,-500.0,0.00013945,2]
[353821873,1740078642010,-500.0,0.00013945,2]
[353821874,1740078642020,-991.77,0.00013945,2]
[353821875,1740078642030,-558.18,0.00013945,2]
[353821876,1740078642040,-3987.56,0.00013945,2]
[353821877,1740078642050,-500.0,0.00013945,2]
[353821878,1740078642060,-501.01678089,0.00013945,2]
[353821879,1740078642069,-500.0,0.00013945,2]
[353821880,1740078642079,-612.47,0.00013945,2]
[353821881,1740078642089,-2294.61,0.00013945,2]
[353821882,1740078642098,-500.0,0.00013945,2]
[353821883,1740078642109,-500.0,0.00013945,2]
[353821884,1740078642118,-3680.82,0.00013945,2]
[353821885,1740078642128,-1778.89,0.00013945,2]
[353821886,1740078642138,-500.0,0.00013945,2]
[353821887,1740078642148,-500.0,0.00013945,2]
[353821888,1740078642158,-739.21,0.00013945,2]
[353821889,1740078642167,-500.0,0.00013945,2]
[353821890,1740078642177,-535.76,0.00013945,2]
[353821891,1740078642186,-500.0,0.00013945,2]
[353821892,1740078642196,-476.16308693,0.00013945,2]
[353821893,1740078642205,-1302.88,0.00013945,2]
[353821894,1740078642215,-500.0,0.00013945,2]
[353821895,1740078642224,-1697.47,0.00013945,2]
[353821896,1740078642234,-2195.87,0.00013945,2]
[353821897,1740078642244,-500.0,0.00013945,2]
[353821898,1740078642253,-500.0,0.00013945,2]
[353821899,1740078642263,-500.0,0.00013945,2]
[353821900,1740078642273,-1811.96,0.00013945,2]
[353821901,1740078642283,-500.0,0.00013945,2]
[353821902,1740078642293,-1816.13,0.00013945,2]
[353821903,1740078642302,-15658.72,0.00013945,2]
[353821904,1740078642313,-736.61,0.00013945,2]
[353821905,1740078642323,-5019.09,0.00013945,2]
[353821906,1740078642332,-500.0,0.00013945,2]
[353821907,1740078642342,-500.0,0.00013945,2]
[353821908,1740078642352,-500.0,0.00013945,2]
[353821909,1740078642361,-1321.35,0.00013945,2]
[353821910,1740078642371,-1876.79,0.00013945,2]
[353821911,1740078642381,-534.57,0.00013945,2]
[353821912,1740078642390,-700.35,0.00013945,2]
[353821913,1740078642400,-588.98,0.00013945,2]
[353821914,1740078642409,-472.62235027,0.00013945,2]
[353821915,1740078642419,-500.0,0.00013945,2]
[353821916,1740078642429,-500.0,0.00013945,2]
[353821917,1740078642442,-500.0,0.00013945,2]
[353821918,1740078642451,-500.0,0.00013945,2]
[353821919,1740078642461,-8914.89,0.00013945,2]
[353821920,1740078642471,-500.0,0.00013945,2]
[353821921,1740078642480,-553.18,0.00013945,2]
[353821922,1740078642490,-151.75449317,0.00013945,2]
[353821923,1740078642500,-500.0,0.00013945,2]
[353821924,1740078642510,-500.0,0.00013945,2]
[353821925,1740078642520,-500.0,0.00013945,2]
[353821926,1740078642530,-500.0,0.00013945,2]
[353821927,1740078642540,-3285.28,0.00013945,2]
[353821928,1740078642551,-500.0,0.00013945,2]
[353821929,1740078642562,-183.82870761,0.00013954,2]
[353821930,1740078642572,-2200.0,0.00013988,2]
[353821931,1740078642582,-605.42324317,0.00014005,2]
[353821932,1740078642592,-500.0,0.00014027,2]
[353821933,1740078642601,-500.0,0.00014027,2]
[353821934,1740078642611,-500.0,0.00014027,2]
[353821935,1740078642624,-500.0,0.00014027,2]
[353821936,1740078642634,-500.0,0.00014027,2]
[353821937,1740078642643,-1155.71,0.00014027,2]
[353821938,1740078642652,-500.0,0.00014027,2]
[353821939,1740078642662,-531.14,0.00014027,2]
[353821940,1740078642671,-692.19,0.00014027,2]
[353821941,1740078642681,-500.0,0.00014027,2]
[353821942,1740078642690,-573.15,0.00014027,2]
[353821943,1740078642699,-500.0,0.00014027,2]
[353821944,1740078642709,-500.0,0.00014027,2]
[353821945,1740078642718,-896.16,0.00014027,2]
[353821946,1740078642728,-500.0,0.00014027,2]
[353821947,1740078642739,-554.83,0.00014027,2]
[353821948,1740078642748,-500.0,0.00014027,2]
[353821949,1740078642761,-500.0,0.00014027,2]
[353821950,1740078642771,-535.76,0.00014027,2]
[353821951,1740078642781,-594.4,0.00014027,2]
[353821952,1740078642790,-500.0,0.00014027,2]
[353821953,1740078642800,-1055.0,0.00014027,2]
[353821954,1740078642811,-500.0,0.00014027,2]
[353821955,1740078642820,-811.86,0.00014027,2]
[353821956,1740078642830,-500.0,0.00014027,2]
[353821957,1740078642839,-500.0,0.00014027,2]
[353821958,1740078642849,-500.0,0.00014027,2]
[353821959,1740078642858,-704.69,0.00014027,2]
[353821960,1740078642867,-188.30426012,0.00014027,2]
[353821961,1740078642876,-500.0,0.00014027,2]
[353821962,1740078642886,-500.0,0.00014027,2]
[353821963,1740078642895,-609.0,0.00014027,2]
[353821964,1740078642904,-500.0,0.00014027,2]
[353821965,1740078642914,-585.93,0.00014027,2]
[353821966,1740078642924,-500.0,0.00014027,2]
[353821967,1740078642934,-500.0,0.00014027,2]
[353821968,1740078642943,-500.0,0.00014027,2]
[353821969,1740078642952,-528.15,0.00014027,2]
[353821970,1740078642962,-500.0,0.00014027,2]
[353821971,1740078642972,-500.0,0.00014027,2]
[353821972,1740078642981,-500.0,0.00014027,2]
[353821973,1740078642990,-500.0,0.00014027,2]
[353821974,1740078643000,-15414.88,0.00014027,2]
[353821975,1740078643010,-500.0,0.00014027,2]
[353821976,1740078643020,-732.37,0.00014027,2]
[353821977,1740078643031,-1736.85,0.00014027,2]
[353821978,1740078643040,-909.06,0.00014027,2]
[353821979,1740078643050,-666.3,0.00014027,2]
[353821980,1740078643060,-1333.08,0.00014027,2]
[353821981,1740078643070,-1099.26,0.00014027,2]
[353821982,1740078643080,-513.05,0.00014027,2]
[353821983,1740078643089,-38588.06,0.00014027,2]
[353821984,1740078643099,-500.0,0.00014027,2]
[353821985,1740078643109,-500.0,0.00014027,2]
[353821986,1740078643119,-500.0,0.00014027,2]
[353821988,1740078643129,-870.86,0.00014027,2]
[353821989,1740078643138,-2235.7,0.00014027,2]
[353821990,1740078643148,-1087.36,0.00014027,2]
[353821991,1740078643158,-1121.24,0.00014027,2]
[353821992,1740078643168,-500.0,0.00014027,2]
[353821993,1740078643178,-1307.05,0.00014027,2]
[353821994,1740078643188,-2835.69,0.00014027,2]
[353821996,1740078643198,-6311.81,0.00014027,2]
[353821997,1740078643208,-299.97500029,0.00014027,2]
[353821999,1740078643218,-513.85,0.00014027,2]
[353822001,1740078643228,-500.0,0.00014027,2]
[353822002,1740078643238,-609.45,0.00014027,2]
[353822004,1740078643247,-640.81,0.00014027,2]
[353822005,1740078643258,-500.0,0.00014027,2]
[353822006,1740078643267,-500.0,0.00014027,2]
[353822007,1740078643277,-991.77,0.00014027,2]
[353822008,1740078643286,-558.18,0.00014027,2]
[353822009,1740078643296,-3987.56,0.00014027,2]
[353822010,1740078643306,-500.0,0.00014027,2]
[353822011,1740078643317,-500.0,0.00014027,2]
[353822013,1740078643326,-612.47,0.00014027,2]
[353822015,1740078643336,-2294.61,0.00014027,2]
[353822017,1740078643346,-500.0,0.00014027,2]
[353822019,1740078643356,-500.0,0.00014027,2]
[353822022,1740078643366,-3680.82,0.00014027,2]
[353822025,1740078643375,-500.0,0.00014027,2]
[353822028,1740078643385,-1778.89,0.00014027,2]
[353822030,1740078643394,-500.0,0.00014027,2]
[353822033,1740078643404,-739.21,0.00014027,2]
[353822035,1740078643413,-378.45,0.00014027,2]
[353822037,1740078643423,-535.76,0.00014027,2]
[353822039,1740078643433,-500.0,0.00014027,2]
[353822041,1740078643443,-1302.88,0.00014027,2]
[353822042,1740078643454,-500.0,0.00014027,2]
[353822043,1740078643463,-1697.47,0.00014027,2]
[353822044,1740078643473,-2195.87,0.00014027,2]
[353822045,1740078643484,-500.0,0.00014027,2]
[353822046,1740078643494,-500.0,0.00014027,2]
[353822047,1740078643504,-500.0,0.00014027,2]
[353822048,1740078643513,-1811.96,0.00014027,2]
[353822049,1740078643523,-500.0,0.00014027,2]
[353822050,1740078643533,-1816.13,0.00014027,2]
[353822051,1740078643543,-15658.72,0.00014027,2]
[353822052,1740078643554,-736.61,0.00014027,2]
[353822053,1740078643564,-5019.09,0.00014027,2]
[353822054,1740078643574,-500.0,0.00014027,2]
[353822055,1740078643583,-500.0,0.00014027,2]
[353822056,1740078643593,-500.0,0.00014027,2]
[353822057,1740078643603,-1321.35,0.00014027,2]
[353822058,1740078643614,-1876.79,0.00014027,2]
[353822059,1740078643623,-534.57,0.00014027,2]
[353822060,1740078643633,-700.35,0.00014027,2]
[353822061,1740078643642,-588.98,0.00014027,2]
[353822062,1740078643652,-500.0,0.00014027,2]
[353822063,1740078643661,-500.0,0.00014027,2]
[353822064,1740078643670,-500.0,0.00014027,2]
[353822065,1740078643679,-500.0,0.00014027,2]
[353822066,1740078643689,-8914.89,0.00014027,2]
[353822067,1740078643699,-631.0206765,0.00014027,2]
[353822068,1740078643708,-553.18,0.00014027,2]
[353822069,1740078643718,-500.0,0.00014027,2]
[353822070,1740078643728,-500.0,0.00014027,2]
[353822071,1740078643737,-500.0,0.00014027,2]
[353822072,1740078643745,-500.0,0.00014027,2]
[353822073,1740078643756,-3285.28,0.00014027,2]
[353822074,1740078643766,-500.0,0.00014027,2]
[353822075,1740078643775,-318.72638917,0.00014066,2]
[353822076,1740078643785,-13275.78028017,0.00014086,2]
[353822077,1740078643795,-183.82870761,0.00014091,2]
[353822078,1740078643804,-500.0,0.00014109,2]
[353822079,1740078643815,-500.0,0.00014109,2]
[353822080,1740078643825,-500.0,0.00014109,2]
[353822081,1740078643834,-500.0,0.00014109,2]
[353822082,1740078643843,-171.51,0.00014109,2]
[353822083,1740078643853,-1155.71,0.00014109,2]
[353822084,1740078643862,-500.0,0.00014109,2]
[353822085,1740078643871,-531.14,0.00014109,2]
[353822086,1740078643881,-692.19,0.00014109,2]
[353822087,1740078643891,-500.0,0.00014109,2]
[353822088,1740078643901,-573.15,0.00014109,2]
[353822089,1740078643910,-500.0,0.00014109,2]
[353822090,1740078643919,-299.16,0.00014109,2]
[353822092,1740078643929,-896.16,0.00014109,2]
[353822093,1740078643939,-500.0,0.00014109,2]
[353822094,1740078643949,-554.83,0.00014109,2]
[353822095,1740078643958,-310.33331655,0.00014109,2]
[353822096,1740078643967,-500.0,0.00014109,2]
[353822097,1740078644074,-535.76,0.00014109,2]
[353822098,1740078644084,-594.4,0.00014109,2]
[353822099,1740078644094,-500.0,0.00014109,2]
[353822100,1740078644104,-1055.0,0.00014109,2]
[353822101,1740078644114,-500.0,0.00014109,2]
[353822102,1740078644123,-811.86,0.00014109,2]
[353822103,1740078644132,-500.0,0.00014109,2]
[353822104,1740078644142,-500.0,0.00014109,2]
[353822105,1740078644151,-500.0,0.00014109,2]
[353822106,1740078644161,-704.69,0.00014109,2]
[353822107,1740078644172,-500.0,0.00014109,2]
[353822108,1740078644183,-500.0,0.00014109,2]
[353822109,1740078644192,-609.0,0.00014109,2]
[353822110,1740078644202,-500.0,0.00014109,2]
[353822111,1740078644211,-585.93,0.00014109,2]
[353822112,1740078644221,-242.45975678,0.00014109,2]
[353822113,1740078644231,-500.0,0.00014109,2]
[353822114,1740078644241,-500.0,0.00014109,2]
[353822115,1740078644251,-528.15,0.00014109,2]
[353822116,1740078644260,-500.0,0.00014109,2]
[353822117,1740078644269,-500.0,0.00014109,2]
[353822118,1740078644279,-500.0,0.00014109,2]
[353822119,1740078644288,-500.0,0.00014109,2]
[353822120,1740078644297,-15414.88,0.00014109,2]
[353822121,1740078644307,-500.0,0.00014109,2]
[353822122,1740078644317,-732.37,0.00014109,2]
[353822123,1740078644327,-1736.85,0.00014109,2]
[353822124,1740078644336,-909.06,0.00014109,2]
[353822125,1740078644345,-666.3,0.00014109,2]
[353822126,1740078644355,-1333.08,0.00014109,2]
[353822127,1740078644365,-1099.26,0.00014109,2]
[353822128,1740078644374,-513.05,0.00014109,2]
[353822129,1740078644384,-38588.06,0.00014109,2]
[353822130,1740078644393,-500.0,0.00014109,2]
[353822131,1740078644403,-500.0,0.00014109,2]
[353822132,1740078644412,-500.0,0.00014109,2]
[353822133,1740078644422,-870.86,0.00014109,2]
[353822134,1740078644431,-2235.7,0.00014109,2]
[353822135,1740078644443,-1087.36,0.00014109,2]
[353822136,1740078644454,-1121.24,0.00014109,2]
[353822137,1740078644464,-500.0,0.00014109,2]
[353822138,1740078644473,-1307.05,0.00014109,2]
[353822139,1740078644483,-2835.69,0.00014109,2]
[353822140,1740078644493,-6311.81,0.00014109,2]
[353822141,1740078644502,-513.85,0.00014109,2]
[353822142,1740078644511,-500.0,0.00014109,2]
[353822143,1740078644521,-609.45,0.00014109,2]
[353822144,1740078644531,-640.81,0.00014109,2]
[353822145,1740078644541,-500.0,0.00014109,2]
[353822146,1740078644550,-278.9838097,0.00014109,2]
[353822147,1740078644560,-991.77,0.00014109,2]
[353822148,1740078644572,-558.18,0.00014109,2]
[353822149,1740078644582,-3987.56,0.00014109,2]
[353822150,1740078644591,-500.0,0.00014109,2]
[353822151,1740078644600,-151.0,0.00014109,2]
[353822152,1740078644609,-500.0,0.00014109,2]
[353822153,1740078644619,-612.47,0.00014109,2]
[353822154,1740078644628,-2294.61,0.00014109,2]
[353822155,1740078644638,-500.0,0.00014109,2]
[353822156,1740078644647,-3680.82,0.00014109,2]
[353822157,1740078644656,-500.0,0.00014109,2]
[353822158,1740078644666,-1778.89,0.00014109,2]
[353822159,1740078644676,-500.0,0.00014109,2]
[353822160,1740078644686,-739.21,0.00014109,2]
[353822161,1740078644695,-535.76,0.00014109,2]
[353822162,1740078644704,-500.0,0.00014109,2]
[353822163,1740078644714,-1302.88,0.00014109,2]
[353822164,1740078644723,-500.0,0.00014109,2]
[353822165,1740078644732,-1697.47,0.00014109,2]
[353822166,1740078644741,-2195.87,0.00014109,2]
[353822167,1740078644750,-500.0,0.00014109,2]
[353822168,1740078644760,-500.0,0.00014109,2]
[353822169,1740078644770,-500.0,0.00014109,2]
[353822170,1740078644780,-1811.96,0.00014109,2]
[353822171,1740078644791,-500.0,0.00014109,2]
[353822172,1740078644800,-1816.13,0.00014109,2]
[353822173,1740078644810,-15658.72,0.00014109,2]
[353822174,1740078644821,-736.61,0.00014109,2]
[353822175,1740078644831,-5019.09,0.00014109,2]
[353822176,1740078644841,-360.23591674,0.00014109,2]
[353822177,1740078644851,-500.0,0.00014109,2]
[353822178,1740078644860,-500.0,0.00014109,2]
[353822179,1740078644870,-1321.35,0.00014109,2]
[353822180,1740078644879,-1876.79,0.00014109,2]
[353822181,1740078644888,-151.0,0.00014109,2]
[353822182,1740078644898,-534.57,0.00014109,2]
[353822183,1740078644907,-700.35,0.00014109,2]
[353822184,1740078644917,-588.98,0.00014109,2]
[353822185,1740078644926,-500.0,0.00014109,2]
[353822186,1740078644936,-500.0,0.00014109,2]
[353822187,1740078644946,-500.0,0.00014109,2]
[353822188,1740078644957,-500.0,0.00014109,2]
[353822189,1740078644967,-8914.89,0.00014109,2]
[353822190,1740078644977,-553.18,0.00014109,2]
[353822191,1740078644986,-500.0,0.00014109,2]
[353822192,1740078644996,-500.0,0.00014109,2]
[353822193,1740078645006,-500.0,0.00014109,2]
[353822194,1740078645016,-500.0,0.00014109,2]
[353822195,1740078645026,-3285.28,0.00014109,2]
[353822196,1740078645036,-500.0,0.00014109,2]
[353822197,1740078645046,-157.5927324,0.00014149,2]
[353822198,1740078645056,-500.0,0.00014191,2]
[353822199,1740078645066,-500.0,0.00014191,2]
[353822200,1740078645076,-500.0,0.00014191,2]
[353822201,1740078645086,-500.0,0.00014191,2]
[353822202,1740078645096,-1155.71,0.00014191,2]
[353822203,1740078645109,-500.0,0.00014191,2]
[353822204,1740078645120,-531.14,0.00014191,2]
[353822205,1740078645132,-692.19,0.00014191,2]
[353822206,1740078645144,-500.0,0.00014191,2]
[353822207,1740078645154,-573.15,0.00014191,2]
[353822208,1740078645165,-500.0,0.00014191,2]
[353822209,1740078645177,-896.16,0.00014191,2]
[353822210,1740078645188,-500.0,0.00014191,2]
[353822211,1740078645199,-554.83,0.00014191,2]
[353822212,1740078645209,-500.0,0.00014191,2]
[353822213,1740078645219,-535.76,0.00014191,2]
[353822214,1740078645228,-594.4,0.00014191,2]
[353822215,1740078645238,-500.0,0.00014191,2]
[353822216,1740078645248,-1055.0,0.00014191,2]
[353822217,1740078645259,-500.0,0.00014191,2]
[353822218,1740078645269,-811.86,0.00014191,2]
[353822219,1740078645278,-500.0,0.00014191,2]
[353822220,1740078645289,-500.0,0.00014191,2]
[353822221,1740078645300,-500.0,0.00014191,2]
[353822222,1740078645310,-704.69,0.00014191,2]
[353822223,1740078645320,-500.0,0.00014191,2]
[353822224,1740078645330,-500.0,0.00014191,2]
[353822225,1740078645340,-609.0,0.00014191,2]
[353822226,1740078645350,-500.0,0.00014191,2]
[353822227,1740078645360,-585.93,0.00014191,2]
[353822228,1740078645370,-500.0,0.00014191,2]
[353822229,1740078645379,-500.0,0.00014191,2]
[353822230,1740078645390,-151.0,0.00014191,2]
[353822231,1740078645400,-528.15,0.00014191,2]
[353822232,1740078645409,-503.20914958,0.00014191,2]
[353822233,1740078645419,-500.0,0.00014191,2]
[353822234,1740078645428,-500.0,0.00014191,2]
[353822235,1740078645438,-500.0,0.00014191,2]
[353822236,1740078645450,-15414.88,0.00014191,2]
[353822237,1740078645459,-500.0,0.00014191,2]
[353822238,1740078645468,-732.37,0.00014191,2]
[353822239,1740078645478,-1736.85,0.00014191,2]
[353822240,1740078645488,-151.0,0.00014191,2]
[353822241,1740078645497,-151.0,0.00014191,2]
[353822242,1740078645506,-909.06,0.00014191,2]
[353822243,1740078645515,-666.3,0.00014191,2]
[353822244,1740078645526,-1333.08,0.00014191,2]
[353822245,1740078645535,-1099.26,0.00014191,2]
[353822246,1740078645545,-152.137845,0.00014191,2]
[353822247,1740078645555,-513.05,0.00014191,2]
[353822248,1740078645564,-38588.06,0.00014191,2]
[353822249,1740078645574,-500.0,0.00014191,2]
[353822250,1740078645583,-500.0,0.00014191,2]
[353822251,1740078645593,-482.0,0.00014191,2]
[353822252,1740078645602,-500.0,0.00014191,2]
[353822253,1740078645612,-870.86,0.00014191,2]
[353822254,1740078645622,-482.0,0.00014191,2]
[353822255,1740078645631,-2235.7,0.00014191,2]
[353822256,1740078645641,-1087.36,0.00014191,2]
[353822257,1740078645652,-151.0,0.00014191,2]
[353822258,1740078645661,-1121.24,0.00014191,2]
[353822259,1740078645671,-500.0,0.00014191,2]
[353822260,1740078645680,-1307.05,0.00014191,2]
[353822261,1740078645690,-2835.69,0.00014191,2]
[353822262,1740078645699,-6311.81,0.00014191,2]
[353822263,1740078645708,-513.85,0.00014191,2]
[353822264,1740078645718,-196.012323,0.00014191,2]
[353822265,1740078645727,-500.0,0.00014191,2]
[353822266,1740078645736,-609.45,0.00014191,2]
[353822267,1740078645745,-640.81,0.00014191,2]
[353822268,1740078645754,-500.0,0.00014191,2]
[353822269,1740078645764,-991.77,0.00014191,2]
[353822270,1740078645773,-558.18,0.00014191,2]
[353822271,1740078645783,-3987.56,0.00014191,2]
[353822272,1740078645792,-500.0,0.00014191,2]
[353822273,1740078645801,-151.0,0.00014191,2]
[353822274,1740078645810,-500.0,0.00014191,2]
[353822275,1740078645821,-612.47,0.00014191,2]
[353822276,1740078645831,-2294.61,0.00014191,2]
[353822277,1740078645841,-500.0,0.00014191,2]
[353822278,1740078645850,-3680.82,0.00014191,2]
[353822279,1740078645860,-500.0,0.00014191,2]
[353822280,1740078645869,-1778.89,0.00014191,2]
[353822281,1740078645879,-500.0,0.00014191,2]
[353822282,1740078645888,-739.21,0.00014191,2]
[353822283,1740078645898,-535.76,0.00014191,2]
[353822284,1740078645907,-500.0,0.00014191,2]
[353822285,1740078645917,-1302.88,0.00014191,2]
[353822286,1740078645928,-525.13,0.00014191,2]
[353822287,1740078645937,-1697.47,0.00014191,2]
[353822288,1740078645947,-2195.87,0.00014191,2]
[353822289,1740078645956,-500.0,0.00014191,2]
[353822290,1740078645966,-323.26680053,0.00014191,2]
[353822291,1740078645976,-500.0,0.00014191,2]
[353822292,1740078645986,-1811.96,0.00014191,2]
[353822293,1740078645995,-500.0,0.00014191,2]
[353822294,1740078646005,-1816.13,0.00014191,2]
[353822295,1740078646015,-15658.72,0.00014191,2]
[353822296,1740078646024,-736.61,0.00014191,2]
[353822297,1740078646034,-5019.09,0.00014191,2]
[353822298,1740078646044,-500.0,0.00014191,2]
[353822299,1740078646053,-500.0,0.00014191,2]
[353822300,1740078646064,-1321.35,0.00014191,2]
[353822301,1740078646074,-1876.79,0.00014191,2]
[353822302,1740078646084,-151.0,0.00014191,2]
[353822303,1740078646094,-534.57,0.00014191,2]